[Event "Early-Titled-Tuesday-Blitz-January-30-2024"]
[Site "Chess.com"]
[Date "2024.01.30"]
[Round "8"]
[White "winniethepooh04"]
[Black "kekic76"]
[Result "1-0"]
[WhiteElo "2536"]
[BlackElo "2355"]
[TimeControl "180+1"]
[EndTime "9:29:18 PST"]
[Termination "winniethepooh04 won by resignation"]

1. d4 {[%clk 0:03:00.9]} 1... d6 {[%clk 0:02:58.7]} 2. Nf3 {[%clk 0:03:00.8]}
2... Nc6 {[%clk 0:02:58.7]} 3. Bf4 {[%clk 0:03:00.1]} 3... g6 {[%clk 0:02:58.5]}
4. h3 {[%clk 0:03:00]} 4... Bg7 {[%clk 0:02:58.6]} 5. e3 {[%clk 0:03:00.7]} 5...
Nf6 {[%clk 0:02:58.8]} 6. Be2 {[%clk 0:03:01.3]} 6... O-O {[%clk 0:02:59]} 7.
O-O {[%clk 0:03:02]} 7... Bd7 {[%clk 0:02:57.6]} 8. c4 {[%clk 0:03:02.5]} 8...
Qe8 {[%clk 0:02:57.5]} 9. Nc3 {[%clk 0:03:03.1]} 9... a6 {[%clk 0:02:52.8]} 10.
Rc1 {[%clk 0:03:01.7]} 10... e5 {[%clk 0:02:51.3]} 11. Bh2 {[%clk 0:03:00.8]}
11... Rd8 {[%clk 0:02:49.7]} 12. a3 {[%clk 0:03:00]} 12... Bf5 {[%clk
0:02:44.3]} 13. b4 {[%clk 0:02:58.3]} 13... exd4 {[%clk 0:02:41]} 14. exd4
{[%clk 0:02:58.1]} 14... Ne4 {[%clk 0:02:40.8]} 15. Nd5 {[%clk 0:02:55.2]} 15...
Qd7 {[%clk 0:02:37.7]} 16. Re1 {[%clk 0:02:54.8]} 16... Rfe8 {[%clk 0:02:37]}
17. Bf1 {[%clk 0:02:52.9]} 17... h6 {[%clk 0:02:33.9]} 18. Ne3 {[%clk
0:02:52.4]} 18... Nf6 {[%clk 0:02:22.6]} 19. Bd3 {[%clk 0:02:25.2]} 19... Bxd3
{[%clk 0:02:17.4]} 20. Qxd3 {[%clk 0:02:26.1]} 20... Re7 {[%clk 0:02:12.5]} 21.
Nc2 {[%clk 0:02:23.4]} 21... Rde8 {[%clk 0:02:12.2]} 22. Rxe7 {[%clk 0:02:23.4]}
22... Rxe7 {[%clk 0:02:11.7]} 23. Re1 {[%clk 0:02:23.9]} 23... Qe8 {[%clk
0:02:11.8]} 24. Rxe7 {[%clk 0:02:23.2]} 24... Qxe7 {[%clk 0:02:11.9]} 25. d5
{[%clk 0:02:19.9]} 25... Nb8 {[%clk 0:02:10.1]} 26. Qe3 {[%clk 0:02:17.7]} 26...
Qxe3 {[%clk 0:02:05.3]} 27. Nxe3 {[%clk 0:02:18.6]} 27... Nbd7 {[%clk
0:02:02.7]} 28. c5 {[%clk 0:02:17.6]} 28... dxc5 {[%clk 0:01:51.9]} 29. bxc5
{[%clk 0:02:18]} 29... Nxc5 {[%clk 0:01:51]} 30. Bxc7 {[%clk 0:02:18.1]} 30...
Nfd7 {[%clk 0:01:47.6]} 31. Kf1 {[%clk 0:02:14.9]} 31... f5 {[%clk 0:01:46.6]}
32. Ke2 {[%clk 0:02:07.7]} 32... Bb2 {[%clk 0:01:45.2]} 33. Nc4 {[%clk
0:02:06.8]} 33... Bf6 {[%clk 0:01:36]} 34. Nfe5 {[%clk 0:01:49.8]} 34... Nxe5
{[%clk 0:01:31.9]} 35. Bxe5 {[%clk 0:01:50.1]} 35... Bxe5 {[%clk 0:01:18.5]} 36.
Nxe5 {[%clk 0:01:51]} 36... g5 {[%clk 0:01:17.9]} 37. Ke3 {[%clk 0:01:49.2]}
37... Kf8 {[%clk 0:01:10.2]} 38. Kd4 {[%clk 0:01:47.2]} 38... Ne4 {[%clk
0:01:10.3]} 39. f3 {[%clk 0:01:47.1]} 39... Nf6 {[%clk 0:01:01.8]} 40. Nc4
{[%clk 0:01:42.9]} 40... Ke7 {[%clk 0:00:57.9]} 41. Ke5 {[%clk 0:01:41.3]} 41...
f4 {[%clk 0:00:52.9]} 42. d6+ {[%clk 0:01:38.3]} 42... Kf7 {[%clk 0:00:49.9]}
43. Nb6 {[%clk 0:01:31.6]} 43... a5 {[%clk 0:00:44.9]} 44. d7 {[%clk 0:01:27.3]}
44... Ke7 {[%clk 0:00:43.8]} 45. d8=Q+ {[%clk 0:01:27]} 45... Kxd8 {[%clk
0:00:43.5]} 46. Kxf6 {[%clk 0:01:27.3]} 46... Kc7 {[%clk 0:00:42]} 47. Nc4
{[%clk 0:01:27.9]} 47... b6 {[%clk 0:00:41.7]} 48. Kg6 {[%clk 0:01:27.9]} 48...
Kc6 {[%clk 0:00:42.1]} 49. Kxh6 {[%clk 0:01:28.1]} 49... Kc5 {[%clk 0:00:42.5]}
50. Nb2 {[%clk 0:01:28.1]} 50... b5 {[%clk 0:00:41]} 51. Kxg5 {[%clk 0:01:28.1]}
51... Kd4 {[%clk 0:00:41.7]} 52. h4 {[%clk 0:01:27.3]} 52... Kc3 {[%clk
0:00:42.1]} 53. h5 {[%clk 0:01:27.5]} 53... Kxb2 {[%clk 0:00:37.3]} 54. h6
{[%clk 0:01:27.7]} 54... Kxa3 {[%clk 0:00:36.8]} 55. h7 {[%clk 0:01:28.2]} 55...
b4 {[%clk 0:00:35.1]} 56. h8=Q {[%clk 0:01:28.3]} 56... a4 {[%clk 0:00:35.6]}
57. Qa1+ {[%clk 0:01:27.4]} 57... Kb3 {[%clk 0:00:36]} 58. Kxf4 {[%clk
0:01:27.6]} 58... a3 {[%clk 0:00:36.5]} 59. Ke3 {[%clk 0:01:28]} 59... Kc2
{[%clk 0:00:36.8]} 60. Qa2+ {[%clk 0:01:27.3]} 60... Kc3 {[%clk 0:00:35.5]} 61.
g4 {[%clk 0:01:26.9]} 1-0

[Event "Early-Titled-Tuesday-Blitz-January-30-2024"]
[Site "Chess.com"]
[Date "2024.01.30"]
[Round "8"]
[White "Legendinunknown"]
[Black "VincentKeymer"]
[Result "0-1"]
[WhiteElo "2844"]
[BlackElo "3066"]
[TimeControl "180+1"]
[EndTime "9:29:20 PST"]
[Termination "VincentKeymer won by resignation"]

1. d4 {[%clk 0:02:57.5]} 1... Nf6 {[%clk 0:02:59.9]} 2. c4 {[%clk 0:02:55.2]}
2... e6 {[%clk 0:02:59.8]} 3. Nc3 {[%clk 0:02:54.1]} 3... Bb4 {[%clk 0:02:59.3]}
4. f3 {[%clk 0:02:54.2]} 4... d5 {[%clk 0:02:57.2]} 5. a3 {[%clk 0:02:53.6]}
5... Bd6 {[%clk 0:02:57.6]} 6. e4 {[%clk 0:02:50]} 6... dxe4 {[%clk 0:02:58.5]}
7. fxe4 {[%clk 0:02:50.7]} 7... e5 {[%clk 0:02:59.2]} 8. dxe5 {[%clk 0:02:31.3]}
8... Bxe5 {[%clk 0:02:54.8]} 9. Qxd8+ {[%clk 0:02:31.3]} 9... Kxd8 {[%clk
0:02:55.7]} 10. Bg5 {[%clk 0:02:24.6]} 10... h6 {[%clk 0:02:54.6]} 11. O-O-O+
{[%clk 0:02:23.3]} 11... Nd7 {[%clk 0:02:53.2]} 12. Bxf6+ {[%clk 0:02:17.2]}
12... Bxf6 {[%clk 0:02:51.7]} 13. Nd5 {[%clk 0:02:17]} 13... Bg5+ {[%clk
0:02:49.5]} 14. Kc2 {[%clk 0:02:12.6]} 14... c6 {[%clk 0:02:49.9]} 15. h4 {[%clk
0:02:11.6]} 15... Be7 {[%clk 0:02:21]} 16. Nxe7 {[%clk 0:02:10]} 16... Kxe7
{[%clk 0:02:21.9]} 17. Nf3 {[%clk 0:02:09.9]} 17... Nc5 {[%clk 0:02:22.7]} 18.
Re1 {[%clk 0:01:43.7]} 18... a5 {[%clk 0:02:18]} 19. b3 {[%clk 0:01:41.2]} 19...
Be6 {[%clk 0:02:08.6]} 20. Nd4 {[%clk 0:01:38.7]} 20... Rhd8 {[%clk 0:02:08]}
21. Kc3 {[%clk 0:01:37.8]} 21... Rd7 {[%clk 0:01:57]} 22. g3 {[%clk 0:01:19.5]}
22... Rad8 {[%clk 0:01:51.5]} 23. Nxe6 {[%clk 0:01:19.7]} 23... fxe6 {[%clk
0:01:45.5]} 24. b4 {[%clk 0:01:15.6]} 24... axb4+ {[%clk 0:01:41.7]} 25. axb4
{[%clk 0:01:16.5]} 25... Nd3 {[%clk 0:01:42.3]} 26. Re2 {[%clk 0:00:58.7]} 26...
Ne5 {[%clk 0:01:24.9]} 27. Ra2 {[%clk 0:00:41.7]} 27... Rd1 {[%clk 0:01:17.4]}
28. Bg2 {[%clk 0:00:40.4]} 28... R8d3+ {[%clk 0:01:15.6]} 29. Kc2 {[%clk
0:00:33.9]} 29... R1d2+ {[%clk 0:01:14.4]} 30. Kb1 {[%clk 0:00:34.2]} 30... Rxa2
{[%clk 0:01:15.3]} 31. Kxa2 {[%clk 0:00:35.1]} 31... Rd2+ {[%clk 0:01:15.9]} 32.
Kb3 {[%clk 0:00:36]} 32... Rxg2 {[%clk 0:01:16.8]} 33. Ra1 {[%clk 0:00:36.6]}
33... Rxg3+ {[%clk 0:01:17]} 34. Kc2 {[%clk 0:00:36.8]} 34... Nxc4 {[%clk
0:01:17.4]} 35. Ra7 {[%clk 0:00:37.4]} 35... Kd6 {[%clk 0:01:14.2]} 36. Rxb7
{[%clk 0:00:37.3]} 36... g5 {[%clk 0:01:13.6]} 37. h5 {[%clk 0:00:37.2]} 37...
Rh3 {[%clk 0:01:13.3]} 38. Rh7 {[%clk 0:00:36.7]} 38... Rxh5 {[%clk 0:01:13.4]}
39. Kc3 {[%clk 0:00:34.9]} 39... Ne5 {[%clk 0:01:13.4]} 40. b5 {[%clk
0:00:32.3]} 40... cxb5 {[%clk 0:01:12.8]} 41. Kd4 {[%clk 0:00:32.5]} 41... g4
{[%clk 0:01:08.9]} 42. Rb7 {[%clk 0:00:31.3]} 42... g3 {[%clk 0:01:03.1]} 43.
Ke3 {[%clk 0:00:27.4]} 43... Rg5 {[%clk 0:01:02.1]} 0-1

[Event "Early-Titled-Tuesday-Blitz-January-30-2024"]
[Site "Chess.com"]
[Date "2024.01.30"]
[Round "8"]
[White "Akylbek2021"]
[Black "deepfear"]
[Result "1-0"]
[WhiteElo "2273"]
[BlackElo "1957"]
[TimeControl "180+1"]
[EndTime "9:29:21 PST"]
[Termination "Akylbek2021 won by checkmate"]

1. d4 {[%clk 0:03:00.9]} 1... Nf6 {[%clk 0:02:59.3]} 2. c4 {[%clk 0:03:00.4]}
2... g6 {[%clk 0:02:56.1]} 3. Nc3 {[%clk 0:03:00.1]} 3... Bg7 {[%clk 0:02:56.1]}
4. g3 {[%clk 0:02:59.8]} 4... O-O {[%clk 0:02:54.9]} 5. Bg2 {[%clk 0:03:00.3]}
5... d6 {[%clk 0:02:55.2]} 6. Nf3 {[%clk 0:03:00.9]} 6... Nc6 {[%clk 0:02:55.7]}
7. O-O {[%clk 0:03:01]} 7... a6 {[%clk 0:02:55.9]} 8. d5 {[%clk 0:02:58.9]} 8...
Na5 {[%clk 0:02:55.7]} 9. Nd2 {[%clk 0:02:48.2]} 9... c5 {[%clk 0:02:55.6]} 10.
e4 {[%clk 0:02:40.4]} 10... Rb8 {[%clk 0:02:52.4]} 11. a4 {[%clk 0:02:36.4]}
11... e5 {[%clk 0:02:42.4]} 12. dxe6 {[%clk 0:02:28.6]} 12... fxe6 {[%clk
0:02:19.3]} 13. Rb1 {[%clk 0:02:27.9]} 13... Qc7 {[%clk 0:02:03.4]} 14. b3
{[%clk 0:02:16.8]} 14... Bd7 {[%clk 0:01:50]} 15. Bb2 {[%clk 0:02:16]} 15... b5
{[%clk 0:01:28.2]} 16. axb5 {[%clk 0:02:14.5]} 16... axb5 {[%clk 0:01:27.6]} 17.
Ba1 {[%clk 0:01:27.9]} 17... bxc4 {[%clk 0:01:22]} 18. Nxc4 {[%clk 0:01:24.4]}
18... Nxc4 {[%clk 0:01:15.1]} 19. bxc4 {[%clk 0:01:25.3]} 19... Rxb1 {[%clk
0:01:14.7]} 20. Qxb1 {[%clk 0:01:25.1]} 20... Rb8 {[%clk 0:01:14.9]} 21. Qa2
{[%clk 0:01:18.5]} 21... Bc6 {[%clk 0:01:14.8]} 22. Rd1 {[%clk 0:01:10.9]} 22...
Ra8 {[%clk 0:00:50.1]} 23. Qd2 {[%clk 0:01:04.1]} 23... Rxa1 {[%clk 0:00:27.8]}
24. Rxa1 {[%clk 0:01:02.5]} 24... Bxe4 {[%clk 0:00:24.5]} 25. Nxe4 {[%clk
0:00:54.2]} 25... Nxe4 {[%clk 0:00:22.8]} 26. Ra8+ {[%clk 0:00:54.7]} 26... Kf7
{[%clk 0:00:20.4]} 27. Bxe4 {[%clk 0:00:55.2]} 27... Bf6 {[%clk 0:00:11.9]} 28.
h4 {[%clk 0:00:53.2]} 28... Be7 {[%clk 0:00:11.9]} 29. Qh6 {[%clk 0:00:53.5]}
29... d5 {[%clk 0:00:08.2]} 30. Qxh7+ {[%clk 0:00:53.1]} 30... Kf6 {[%clk
0:00:08.6]} 31. Qxg6+ {[%clk 0:00:52.6]} 31... Ke5 {[%clk 0:00:08.6]} 32. cxd5
{[%clk 0:00:48.4]} 32... exd5 {[%clk 0:00:06.4]} 33. Qf5+ {[%clk 0:00:48.9]}
33... Kd4 {[%clk 0:00:06.4]} 34. Qxd5+ {[%clk 0:00:49.4]} 34... Kc3 {[%clk
0:00:05]} 35. Ra3+ {[%clk 0:00:50]} 35... Kb4 {[%clk 0:00:04.9]} 36. Qb3# {[%clk
0:00:49]} 1-0

[Event "Early-Titled-Tuesday-Blitz-January-30-2024"]
[Site "Chess.com"]
[Date "2024.01.30"]
[Round "8"]
[White "stratacticos"]
[Black "toog"]
[Result "0-1"]
[WhiteElo "2048"]
[BlackElo "2585"]
[TimeControl "180+1"]
[EndTime "9:29:23 PST"]
[Termination "toog won on time"]

1. e4 {[%clk 0:02:58]} 1... b6 {[%clk 0:02:58.9]} 2. Nc3 {[%clk 0:02:53.5]} 2...
Bb7 {[%clk 0:02:58.6]} 3. d3 {[%clk 0:02:49.4]} 3... g6 {[%clk 0:02:58]} 4. Bd2
{[%clk 0:02:45.4]} 4... Bg7 {[%clk 0:02:57.8]} 5. f4 {[%clk 0:02:43.2]} 5... d6
{[%clk 0:02:56.4]} 6. Nf3 {[%clk 0:02:42.3]} 6... e6 {[%clk 0:02:54.3]} 7. Be2
{[%clk 0:02:40.7]} 7... c5 {[%clk 0:02:53.5]} 8. O-O {[%clk 0:02:38.9]} 8... Nc6
{[%clk 0:02:53.2]} 9. f5 {[%clk 0:02:30.1]} 9... Nf6 {[%clk 0:02:44.8]} 10. Bg5
{[%clk 0:02:26.2]} 10... h6 {[%clk 0:02:37.7]} 11. Bh4 {[%clk 0:02:17.8]} 11...
g5 {[%clk 0:02:34.6]} 12. fxe6 {[%clk 0:02:04.5]} 12... fxe6 {[%clk 0:02:23.5]}
13. Bg3 {[%clk 0:02:01]} 13... O-O {[%clk 0:02:20.8]} 14. Nb5 {[%clk 0:01:49.6]}
14... Ne8 {[%clk 0:01:44.1]} 15. c3 {[%clk 0:01:41.8]} 15... a6 {[%clk
0:01:42.8]} 16. Na3 {[%clk 0:01:41]} 16... Qe7 {[%clk 0:01:41.9]} 17. Nc2 {[%clk
0:01:39.3]} 17... Nf6 {[%clk 0:01:38.6]} 18. e5 {[%clk 0:01:34.2]} 18... dxe5
{[%clk 0:01:34.6]} 19. Nxe5 {[%clk 0:01:34]} 19... Nxe5 {[%clk 0:01:18.8]} 20.
Bxe5 {[%clk 0:01:33]} 20... Rad8 {[%clk 0:01:19.7]} 21. Bf3 {[%clk 0:01:30.7]}
21... Nd5 {[%clk 0:01:16.3]} 22. Bxg7 {[%clk 0:01:26]} 22... Qxg7 {[%clk
0:01:17.2]} 23. d4 {[%clk 0:01:25.2]} 23... Nf4 {[%clk 0:01:12.3]} 24. Bxb7
{[%clk 0:01:19.3]} 24... Qxb7 {[%clk 0:01:13.2]} 25. Qf3 {[%clk 0:01:14.1]}
25... Qxf3 {[%clk 0:01:12.8]} 26. Rxf3 {[%clk 0:01:13.9]} 26... e5 {[%clk
0:01:12]} 27. Rd1 {[%clk 0:00:59.1]} 27... exd4 {[%clk 0:01:10.1]} 28. cxd4
{[%clk 0:00:58.7]} 28... cxd4 {[%clk 0:01:10.3]} 29. Rf2 {[%clk 0:00:35.6]}
29... d3 {[%clk 0:01:05.4]} 30. Ne3 {[%clk 0:00:24.9]} 30... Rde8 {[%clk
0:00:49.5]} 31. Ng4 {[%clk 0:00:19.7]} 31... h5 {[%clk 0:00:45.4]} 0-1

[Event "Early-Titled-Tuesday-Blitz-January-30-2024"]
[Site "Chess.com"]
[Date "2024.01.30"]
[Round "8"]
[White "Hasangatin_Ramil"]
[Black "FlemingA"]
[Result "0-1"]
[WhiteElo "2663"]
[BlackElo "2469"]
[TimeControl "180+1"]
[EndTime "9:29:26 PST"]
[Termination "FlemingA won on time"]

1. c4 {[%clk 0:03:00.9]} 1... e5 {[%clk 0:02:51.2]} 2. Nc3 {[%clk 0:02:54.8]}
2... Nc6 {[%clk 0:02:51.5]} 3. Nf3 {[%clk 0:02:52]} 3... Nf6 {[%clk 0:02:48.9]}
4. e3 {[%clk 0:02:51.6]} 4... d5 {[%clk 0:02:46.2]} 5. cxd5 {[%clk 0:02:41.9]}
5... Nxd5 {[%clk 0:02:46.8]} 6. d4 {[%clk 0:02:40.6]} 6... Bb4 {[%clk
0:02:36.5]} 7. Bd2 {[%clk 0:02:37.5]} 7... exd4 {[%clk 0:02:36.8]} 8. exd4
{[%clk 0:02:33.9]} 8... O-O {[%clk 0:02:36.1]} 9. Be2 {[%clk 0:02:32.3]} 9...
Bg4 {[%clk 0:02:30.6]} 10. a3 {[%clk 0:02:24.4]} 10... Be7 {[%clk 0:02:27.6]}
11. Be3 {[%clk 0:02:01]} 11... Bf6 {[%clk 0:02:23.2]} 12. O-O {[%clk 0:01:57.3]}
12... Re8 {[%clk 0:02:22]} 13. Qd2 {[%clk 0:01:53.9]} 13... Na5 {[%clk
0:02:12.8]} 14. Qd3 {[%clk 0:01:40.3]} 14... Bh5 {[%clk 0:01:58.2]} 15. b4
{[%clk 0:01:32.4]} 15... Nc6 {[%clk 0:01:54]} 16. Qd2 {[%clk 0:01:21.5]} 16...
Nxc3 {[%clk 0:01:49.6]} 17. Qxc3 {[%clk 0:01:18]} 17... Ne7 {[%clk 0:01:49.5]}
18. Rad1 {[%clk 0:01:11.4]} 18... Nd5 {[%clk 0:01:49.5]} 19. Qd2 {[%clk
0:01:07.3]} 19... c6 {[%clk 0:01:43.7]} 20. b5 {[%clk 0:00:44.3]} 20... Qd6
{[%clk 0:01:40.5]} 21. bxc6 {[%clk 0:00:42.4]} 21... bxc6 {[%clk 0:01:41.4]} 22.
a4 {[%clk 0:00:39.1]} 22... Rab8 {[%clk 0:01:38.4]} 23. Rb1 {[%clk 0:00:34.1]}
23... Qa3 {[%clk 0:01:22.7]} 24. Ra1 {[%clk 0:00:24.1]} 24... Qb3 {[%clk
0:01:11.2]} 25. h3 {[%clk 0:00:04.8]} 25... Nxe3 {[%clk 0:00:58.4]} 26. fxe3
{[%clk 0:00:05.7]} 26... Qxe3+ {[%clk 0:00:58.4]} 27. Qxe3 {[%clk 0:00:05.6]}
27... Rxe3 {[%clk 0:00:59.3]} 28. Ra2 {[%clk 0:00:03.1]} 28... Rbe8 {[%clk
0:00:54.4]} 29. Bc4 {[%clk 0:00:02.4]} 29... Rc3 {[%clk 0:00:40.1]} 30. Be2
{[%clk 0:00:01.1]} 30... h6 {[%clk 0:00:35.9]} 0-1

[Event "Early-Titled-Tuesday-Blitz-January-30-2024"]
[Site "Chess.com"]
[Date "2024.01.30"]
[Round "8"]
[White "VladimirKramnik"]
[Black "LevonAronian"]
[Result "1-0"]
[WhiteElo "2952"]
[BlackElo "3092"]
[TimeControl "180+1"]
[EndTime "9:29:28 PST"]
[Termination "VladimirKramnik won by resignation"]

1. c4 {[%clk 0:03:00.9]} 1... e5 {[%clk 0:02:57.5]} 2. Nc3 {[%clk 0:03:01]} 2...
Nf6 {[%clk 0:02:57.6]} 3. Nf3 {[%clk 0:03:00.8]} 3... e4 {[%clk 0:02:58]} 4. Nd4
{[%clk 0:03:01]} 4... Nc6 {[%clk 0:02:56.1]} 5. Nc2 {[%clk 0:03:01.1]} 5... Bc5
{[%clk 0:02:51.2]} 6. g3 {[%clk 0:03:01.2]} 6... O-O {[%clk 0:02:38.7]} 7. Bg2
{[%clk 0:03:01]} 7... Re8 {[%clk 0:02:23.9]} 8. O-O {[%clk 0:03:00.9]} 8... d6
{[%clk 0:02:19.2]} 9. Ne3 {[%clk 0:02:48.4]} 9... Bxe3 {[%clk 0:02:08.6]} 10.
fxe3 {[%clk 0:02:48.4]} 10... Bg4 {[%clk 0:01:39.7]} 11. b3 {[%clk 0:02:43.4]}
11... Bh5 {[%clk 0:01:24.7]} 12. Bb2 {[%clk 0:02:42.7]} 12... Bg6 {[%clk
0:01:24.7]} 13. Rf4 {[%clk 0:02:29.9]} 13... Nh5 {[%clk 0:01:21.8]} 14. Rxe4
{[%clk 0:02:16.8]} 14... Bxe4 {[%clk 0:01:19.3]} 15. Nxe4 {[%clk 0:02:11.3]}
15... Ne5 {[%clk 0:00:59.7]} 16. Qf1 {[%clk 0:02:10.5]} 16... Qd7 {[%clk
0:00:59.8]} 17. Bh3 {[%clk 0:02:03.6]} 17... Qc6 {[%clk 0:00:54.1]} 18. d3
{[%clk 0:02:03.5]} 18... b5 {[%clk 0:00:34.6]} 19. g4 {[%clk 0:01:54.6]} 19...
Nf6 {[%clk 0:00:27.5]} 20. Nxf6+ {[%clk 0:01:54.1]} 20... gxf6 {[%clk
0:00:28.1]} 21. Bg2 {[%clk 0:01:47.8]} 21... Qd7 {[%clk 0:00:26.1]} 22. Bxa8
{[%clk 0:01:43]} 22... Rxa8 {[%clk 0:00:26]} 23. Qxf6 {[%clk 0:01:28.8]} 23...
bxc4 {[%clk 0:00:15.8]} 24. bxc4 {[%clk 0:01:21.6]} 24... Rb8 {[%clk 0:00:05.5]}
25. Bxe5 {[%clk 0:01:19]} 25... dxe5 {[%clk 0:00:05.6]} 26. Qg5+ {[%clk
0:01:19]} 26... Kf8 {[%clk 0:00:05.6]} 27. Qxe5 {[%clk 0:01:19.3]} 27... Qxg4+
{[%clk 0:00:03.9]} 28. Kh1 {[%clk 0:00:53.8]} 28... Rb6 {[%clk 0:00:04]} 29.
Qxc7 {[%clk 0:00:39.1]} 29... Rg6 {[%clk 0:00:02.7]} 30. Qd8+ {[%clk 0:00:39.1]}
30... Kg7 {[%clk 0:00:02.7]} 31. Qd4+ {[%clk 0:00:39.3]} 1-0

[Event "Early-Titled-Tuesday-Blitz-January-30-2024"]
[Site "Chess.com"]
[Date "2024.01.30"]
[Round "8"]
[White "Bushonica"]
[Black "agvega14"]
[Result "0-1"]
[WhiteElo "1819"]
[BlackElo "2151"]
[TimeControl "180+1"]
[EndTime "9:29:28 PST"]
[Termination "agvega14 won by checkmate"]

1. e4 {[%clk 0:03:00.1]} 1... c5 {[%clk 0:02:54.7]} 2. d4 {[%clk 0:02:58.5]}
2... cxd4 {[%clk 0:02:54.3]} 3. Qxd4 {[%clk 0:02:58.3]} 3... Nc6 {[%clk
0:02:52.3]} 4. Qe3 {[%clk 0:02:57.7]} 4... d6 {[%clk 0:02:51.9]} 5. Nc3 {[%clk
0:02:56.8]} 5... Nf6 {[%clk 0:02:51.9]} 6. Bc4 {[%clk 0:02:54.4]} 6... e6 {[%clk
0:02:50.8]} 7. h3 {[%clk 0:02:54.2]} 7... a6 {[%clk 0:02:50.1]} 8. f4 {[%clk
0:02:51.2]} 8... Qc7 {[%clk 0:02:49.9]} 9. Nf3 {[%clk 0:02:51]} 9... Be7 {[%clk
0:02:49.1]} 10. Bd2 {[%clk 0:02:49.9]} 10... b5 {[%clk 0:02:46.2]} 11. Bd3
{[%clk 0:02:48]} 11... Bb7 {[%clk 0:02:43.4]} 12. O-O {[%clk 0:02:43.7]} 12...
Rc8 {[%clk 0:02:42.2]} 13. Kh1 {[%clk 0:02:42.7]} 13... Nb4 {[%clk 0:02:37.7]}
14. a3 {[%clk 0:02:41.3]} 14... Nc6 {[%clk 0:02:23.9]} 15. Rae1 {[%clk
0:02:38.4]} 15... Na5 {[%clk 0:01:54.5]} 16. b3 {[%clk 0:02:27]} 16... O-O
{[%clk 0:01:36.1]} 17. f5 {[%clk 0:02:22]} 17... e5 {[%clk 0:01:33.2]} 18. g4
{[%clk 0:02:19.9]} 18... d5 {[%clk 0:01:09.9]} 19. exd5 {[%clk 0:02:17.4]} 19...
Nxd5 {[%clk 0:01:05.5]} 20. Nxd5 {[%clk 0:02:08.8]} 20... Bxd5 {[%clk
0:01:03.7]} 21. Qxe5 {[%clk 0:02:00.8]} 21... Qxe5 {[%clk 0:00:19.9]} 22. Rxe5
{[%clk 0:01:59.2]} 22... Bxf3+ {[%clk 0:00:20]} 23. Rxf3 {[%clk 0:01:58.9]}
23... Nc6 {[%clk 0:00:19.8]} 24. Re2 {[%clk 0:01:56]} 24... Nd4 {[%clk
0:00:17.7]} 25. Rxe7 {[%clk 0:01:44.5]} 25... Nxf3 {[%clk 0:00:17.6]} 26. Bf4
{[%clk 0:01:41.6]} 26... Nd4 {[%clk 0:00:16.8]} 27. c4 {[%clk 0:01:39.8]} 27...
Nxb3 {[%clk 0:00:15.7]} 28. cxb5 {[%clk 0:01:39.3]} 28... axb5 {[%clk
0:00:16.4]} 29. Bxb5 {[%clk 0:01:39.1]} 29... Nd4 {[%clk 0:00:15.2]} 30. Bd7
{[%clk 0:01:37.3]} 30... Rc3 {[%clk 0:00:13.7]} 31. Kg2 {[%clk 0:01:34.9]} 31...
Rxa3 {[%clk 0:00:12.5]} 32. Be5 {[%clk 0:01:34.7]} 32... Nc2 {[%clk 0:00:10.5]}
33. f6 {[%clk 0:01:33]} 33... gxf6 {[%clk 0:00:10.2]} 34. Bxf6 {[%clk
0:01:32.8]} 34... Rb8 {[%clk 0:00:10.3]} 35. Bf5 {[%clk 0:01:31.6]} 35... Ra2
{[%clk 0:00:10.1]} 36. Be5 {[%clk 0:01:29.2]} 36... Ne1+ {[%clk 0:00:09.9]} 37.
Kf1 {[%clk 0:01:28.3]} 37... Rba8 {[%clk 0:00:05.1]} 38. Be4 {[%clk 0:01:27.7]}
38... Nc2 {[%clk 0:00:03.1]} 39. Bxa8 {[%clk 0:01:25.8]} 39... Rxa8 {[%clk
0:00:04]} 40. Ke2 {[%clk 0:01:23.5]} 40... Nb4 {[%clk 0:00:04.2]} 41. Kf3 {[%clk
0:01:21.7]} 41... Nc6 {[%clk 0:00:04.4]} 42. Rc7 {[%clk 0:01:21.2]} 42... Nxe5+
{[%clk 0:00:03.8]} 43. Kf4 {[%clk 0:01:21.4]} 43... Ng6+ {[%clk 0:00:04.7]} 44.
Kg5 {[%clk 0:01:20.5]} 44... Re8 {[%clk 0:00:05.3]} 45. h4 {[%clk 0:01:20.1]}
45... Re5+ {[%clk 0:00:05]} 46. Kf6 {[%clk 0:01:20.1]} 46... Re6+ {[%clk
0:00:05.3]} 47. Kg5 {[%clk 0:01:19.5]} 47... Kg7 {[%clk 0:00:05.8]} 48. h5
{[%clk 0:01:19.3]} 48... h6+ {[%clk 0:00:06]} 49. Kf5 {[%clk 0:01:18.4]} 49...
Re5# {[%clk 0:00:06.7]} 0-1